bitfinex/quotes_ETHUSD_20250511
["timestamp","ask_amount","ask_price","bid_price","bid_amount"]
[1746947814878,4.02268796,2485.9,2485.8,0.005]
[1746947815243,12.0225342,2486.0,2485.8,0.005]
[1746947815444,13.22478762,2486.0,2485.8,0.005]
[1746947815885,4.02268796,2485.9,2485.8,0.005]
[1746947816577,0.8325,2486.4,2485.8,0.005]
[1746947816784,4.02228537,2486.2,2485.8,0.022]
[1746947816981,4.02187902,2486.4,2485.8,0.005]
[1746947817189,4.02268796,2485.9,2485.8,0.005]
[1746947817344,0.8325,2486.7,2485.8,0.005]
[1746947817546,4.02177304,2486.5,2485.8,0.005]
[1746947817746,4.0216011,2486.6,2485.9,0.017]
[1746947817977,0.29810749,2487.0,2485.9,0.017]
[1746947818182,12.519,2487.4,2485.9,0.017]
[1746947818348,4.02154583,2486.7,2485.9,0.017]
[1746947818683,0.29528508,2487.0,2485.9,0.017]
[1746947818909,3.51159441,2487.2,2485.9,0.017]
[1746947819116,4.02151614,2486.7,2485.9,0.017]
[1746947819482,4.02074705,2487.1,2485.9,0.017]
[1746947819785,4.8285704,2486.9,2485.9,0.017]
[1746947819982,4.02196736,2486.4,2485.9,0.017]
[1746947820277,0.55,2486.7,2485.8,0.005]
[1746947820519,4.02268796,2485.9,2485.8,0.005]
[1746947820812,4.31912826,2485.9,2485.8,0.005]
[1746947821314,5.15329486,2485.9,2485.8,0.005]
[1746947821817,4.02182451,2486.5,2485.8,0.005]
[1746947822016,0.7774,2487.6,2486.0,0.017]
[1746947822313,4.0201005,2487.5,2486.1,0.017]
[1746947822516,0.7774,2487.9,2486.3,3.51159441]
[1746947822718,4.01972691,2487.8,2486.5,0.017]
[1746947822921,8.5299849,2488.2,2486.5,0.017]
[1746947823093,0.3045826,2488.3,2486.8,0.017]
[1746947823420,4.01924489,2488.1,2487.0,0.017]
[1746947823607,4.01860344,2488.5,2487.2,0.017]
[1746947823804,4.01714712,2489.4,2487.6,3.51159441]
[1746947824009,0.7774,2489.5,2487.8,0.017]
[1746947824010,4.49668386,2489.3,2487.8,0.017]
[1746947824310,0.47945471,2489.3,2488.0,0.017]
[1746947824505,3.51159441,2489.2,2488.1,4.539]
[1746947824813,9.516587,2489.1,2488.1,4.539]
[1746947825179,4.01911532,2488.2,2487.7,0.017]
[1746947825383,4.01908882,2488.2,2487.7,0.017]
[1746947825602,0.7774,2488.8,2487.8,4.539]
[1746947825782,4.01836113,2488.6,2487.8,4.539]
[1746947825991,3.51159441,2489.0,2487.8,4.539]
[1746947826515,3.51159441,2489.0,2487.9,0.017]
[1746947826516,0.21381046,2488.9,2487.9,0.017]
[1746947826712,4.0192926,2488.0,2487.8,4.539]
[1746947827016,4.0192926,2488.0,2486.6,3.51159441]
[1746947827017,4.02058539,2487.2,2486.7,0.017]
[1746947827329,0.30534627,2487.9,2486.7,0.017]
[1746947827523,4.01945415,2487.9,2486.7,0.017]
[1746947827688,4.01951746,2487.9,2486.7,0.017]
[1746947827894,4.01959845,2487.9,2486.7,0.017]
[1746947828095,4.503,2488.2,2486.7,0.017]
[1746947828326,0.55,2488.1,2486.7,0.017]
[1746947828539,3.51159441,2487.9,2486.7,0.017]
[1746947828688,4.02034469,2487.4,2486.7,0.017]
[1746947828904,4.02090872,2487.0,2486.7,0.017]
[1746947829099,0.8083,2486.7,2485.9,0.017]
[1746947829330,4.02268796,2485.9,2485.8,0.005]
[1746947829513,4.499,2486.1,2485.8,0.005]
[1746947829712,0.8083,2487.1,2485.8,0.005]
[1746947829912,0.55,2486.5,2485.8,0.005]
[1746947830114,4.90110704,2486.8,2485.8,0.005]
[1746947830314,4.02159181,2486.6,2485.9,0.017]
[1746947830513,0.29567235,2486.9,2485.9,0.017]
[1746947830739,4.498,2487.1,2485.9,0.017]
[1746947830914,0.5048,2487.0,2485.9,0.017]
[1746947831111,0.5048,2487.0,2485.8,0.005]
[1746947831112,4.02268796,2485.9,2485.8,0.005]
[1746947831513,13.38098796,2485.9,2485.8,0.005]
[1746947831837,4.02495471,2484.5,2484.2,0.017]
[1746947832025,4.02513713,2484.4,2484.2,0.017]
[1746947832222,4.02527875,2484.3,2483.9,0.017]
[1746947832435,0.7773,2485.0,2484.0,0.93254467]
[1746947832436,4.495,2484.7,2484.0,0.93254467]
[1746947832636,4.02546325,2484.2,2483.9,0.017]
[1746947832804,4.02576489,2484.0,2483.9,0.017]
[1746947833011,8.55,2484.6,2483.4,14.49]
[1746947833217,8.29582303,2484.6,2483.4,14.49]
[1746947833436,4.02603182,2483.9,2483.4,14.49]
[1746947833632,0.21316734,2484.5,2483.5,0.04026289]
[1746947833811,4.02540414,2484.3,2483.4,16.3928]
[1746947834377,4.02445133,2484.9,2483.5,0.04025858]
[1746947834675,0.1,2486.8,2483.8,0.017]
[1746947834676,0.7773,2486.0,2483.8,0.017]
[1746947834882,9.85167857,2486.5,2484.2,0.017]
[1746947835039,4.02204078,2486.3,2484.4,0.017]
[1746947835227,10.287068,2486.4,2485.3,0.005]
[1746947835438,0.90539439,2486.4,2485.3,0.022]
[1746947835634,4.02204078,2486.3,2485.4,4.54]
[1746947835925,0.7773,2487.0,2485.5,0.04022905]
[1746947836135,4.491,2486.9,2485.6,0.017]
[1746947836352,4.491,2486.9,2485.5,0.4987497]
[1746947836353,4.491,2486.9,2485.8,0.017]
[1746947836561,4.02151765,2486.7,2485.8,0.017]
[1746947836872,4.491,2486.9,2485.8,0.017]
[1746947837073,6.13697857,2487.6,2485.8,0.017]
[1746947837074,0.7773,2487.6,2485.8,0.017]
[1746947837282,4.02078786,2487.1,2485.8,0.017]
[1746947837489,4.02268796,2485.9,2485.8,0.017]
[1746947837769,4.02333534,2485.5,2485.4,0.017]
[1746947838073,4.42566887,2485.5,2485.3,0.005]
[1746947838255,0.55,2486.0,2485.3,0.005]
[1746947838861,4.02349722,2485.4,2485.3,0.005]
[1746947839064,17.06049722,2485.4,2485.3,0.005]
[1746947839238,8.50949722,2485.4,2485.3,0.005]
[1746947839436,4.486,2485.4,2485.3,0.005]
[1746947839639,4.486,2485.4,2483.7,0.017]
[1746947839640,4.02596001,2483.9,2483.7,0.017]
[1746947839900,4.02576489,2484.0,2483.2,0.017]
[1746947840190,4.02641327,2483.6,2482.6,0.017]
[1746947840342,0.55,2483.8,2482.6,4.507]
[1746947840661,0.30058402,2484.0,2482.7,0.0402791]
[1746947840847,8.51169301,2484.1,2482.8,4.508]
[1746947840848,4.485,2484.1,2482.8,4.508]
[1746947841378,8.55,2484.0,2482.8,0.017]
[1746947841543,4.02656852,2483.6,2482.9,4.491]
[1746947841738,1.08084039,2484.3,2482.9,4.491]
[1746947841968,8.55,2484.2,2482.9,4.491]
[1746947842176,4.02672614,2483.5,2482.9,4.291]
[1746947842381,12.02576489,2484.0,2482.9,4.291]
[1746947842382,4.02631905,2483.7,2482.9,4.291]
[1746947842599,5.39442569,2484.1,2482.9,4.291]
[1746947842750,4.484,2484.1,2483.0,14.497]
[1746947843140,5.2593,2484.8,2483.2,0.017]
[1746947843375,4.02509222,2484.5,2483.2,0.017]
[1746947843676,0.92837505,2484.7,2483.3,0.017]
[1746947844170,4.0257739,2484.0,2483.3,0.017]
[1746947844376,0.92837505,2484.7,2483.3,0.017]
[1746947845140,4.02525142,2484.4,2483.3,0.05725842]
[1746947845343,4.02496698,2484.5,2483.4,0.017]
[1746947845570,4.78357953,2484.8,2483.4,0.017]
[1746947845771,4.02473996,2484.7,2483.5,0.017]
[1746947845974,4.02492048,2484.6,2483.5,0.017]
[1746947846176,5.35967857,2484.5,2483.5,0.017]
[1746947846339,4.02738622,2483.0,2482.9,4.291]
[1746947846537,4.02738622,2483.0,2482.3,0.017]
[1746947846743,0.40273862,2482.9,2481.9,0.017]
[1746947846943,4.02804557,2482.6,2481.9,0.017]
[1746947847173,4.479,2483.1,2482.0,0.017]
[1746947847371,8.0,2484.2,2482.2,0.017]
[1746947847540,8.0,2484.2,2482.4,0.017]
[1746947847742,4.02675675,2483.4,2482.6,0.017]
[1746947847977,4.02618668,2483.8,2482.6,0.51219604]
[1746947848153,12.02549642,2484.2,2482.7,0.017]
[1746947848477,4.02560283,2484.1,2482.7,0.017]
[1746947848687,8.0,2483.6,2482.7,0.017]
[1746947848855,4.02706948,2483.2,2482.7,0.017]
[1746947849061,4.02805816,2482.6,2482.3,14.485]
[1746947849259,0.40270695,2483.2,2482.3,14.485]
[1746947849587,4.02817944,2482.6,2482.1,4.492]
[1746947849791,4.02781579,2482.8,2482.1,4.492]
[1746947849961,4.02752014,2483.0,2482.2,0.04028241]
[1746947850143,4.02775126,2482.8,2482.2,0.04028241]
[1746947850351,8.0,2483.4,2482.2,0.04028241]
[1746947850682,4.02608905,2483.8,2482.3,0.04028127]
[1746947850881,4.476,2483.9,2482.4,0.017]
[1746947851082,5.35967857,2484.2,2482.5,0.017]
[1746947851285,5.35967857,2483.8,2482.6,14.505]
[1746947851453,4.02718513,2483.2,2482.6,14.505]
[1746947851645,4.02619919,2483.8,2482.7,0.04027673]
[1746947851845,4.474,2484.1,2482.7,0.017]
[1746947852078,4.02576489,2484.0,2482.7,0.017]
[1746947852288,4.02495766,2484.5,2482.8,0.017]
[1746947852457,4.02519,2484.4,2483.0,0.017]
[1746947852665,4.02488791,2484.6,2483.2,0.017]
[1746947852864,6.10967857,2485.4,2483.3,0.017]
[1746947853061,4.473,2485.3,2483.5,0.017]
[1746947853681,4.02461688,2484.8,2483.6,4.494]
[1746947853895,4.02430681,2484.9,2483.8,0.017]
[1746947854051,9.38385882,2485.0,2483.8,0.017]
[1746947854052,4.02458355,2484.8,2483.8,0.017]
[1746947854252,4.0249259,2484.6,2483.8,0.017]
[1746947854582,9.38447129,2484.6,2483.8,0.017]
[1746947854747,5.35967857,2484.2,2483.4,0.017]
[1746947854947,5.35967857,2483.8,2482.9,0.017]
[1746947855149,4.471,2483.7,2482.9,0.017]
[1746947855352,4.02671834,2483.5,2482.9,0.017]
[1746947855583,8.49726648,2483.7,2483.0,4.494]
[1746947855783,4.024257,2485.0,2483.1,0.017]
[1746947856086,4.02459129,2484.8,2483.2,0.017]
[1746947856287,4.02467322,2484.7,2483.4,0.017]
[1746947856856,4.02452839,2484.8,2483.4,0.017]
[1746947857196,4.47,2485.1,2483.5,4.469]
[1746947857495,9.82867857,2485.5,2483.7,0.017]
[1746947857795,9.82867857,2485.5,2483.9,0.017]
[1746947857991,9.82867857,2485.5,2483.1,0.45512736]
[1746947857992,10.1342017,2485.5,2484.0,14.491]
[1746947858200,4.0236496,2485.4,2484.1,4.55124496]
[1746947858376,4.0236234,2485.4,2484.1,4.494]
[1746947858688,4.469,2485.5,2484.2,0.017]
[1746947858890,5.35967857,2484.4,2483.5,4.494]
[1746947859053,4.02596903,2483.9,2483.4,0.017]
[1746947859253,4.466,2484.3,2483.4,0.017]
[1746947859453,8.49133174,2484.3,2483.4,0.017]
[1746947859685,4.02653092,2483.6,2483.4,0.017]
[1746947859872,5.90967857,2484.0,2482.9,14.506]
[1746947860074,4.0267983,2483.4,2482.6,4.494]
[1746947860393,4.0273999,2483.0,2482.6,4.494]
[1746947860593,0.55,2483.4,2482.6,4.494]
[1746947860897,0.55,2483.4,2481.9,14.489]
[1746947860898,6.14027857,2483.2,2481.9,0.017]
[1746947861107,0.55,2482.5,2481.5,0.017]
[1746947861385,4.0286364,2482.3,2481.8,17.73193182]
[1746947861596,4.464,2482.4,2481.8,16.11993802]
[1746947861597,4.02917119,2481.9,2481.8,16.11993802]
[1746947862361,4.57917119,2481.9,2481.8,16.11993802]
[1746947862566,8.49317119,2481.9,2481.8,16.11993802]
[1746947862972,9.04217119,2481.9,2481.8,16.11993802]
[1746947863186,8.80014518,2481.9,2481.8,16.11993802]
[1746947863495,9.79704518,2481.9,2481.8,16.11993802]
[1746947863695,0.30797399,2481.9,2481.8,16.11993802]
[1746947863895,4.23392501,2483.5,2481.8,16.11993802]
[1746947863896,4.02697533,2483.3,2481.8,16.13693802]
[1746947864194,4.02617219,2483.8,2482.0,0.017]
[1746947864195,5.2439,2483.7,2482.0,0.017]
[1746947864370,4.02734875,2483.1,2482.2,0.017]
[1746947864691,8.48826974,2483.7,2482.3,4.494]
[1746947864891,4.02794521,2482.7,2482.2,0.017]
[1746947865190,4.461,2482.8,2481.8,16.11993802]
[1746947865389,4.461,2482.7,2481.8,16.11993802]
[1746947865891,4.02900886,2482.0,2481.8,16.11993802]
[1746947866192,4.02917119,2481.9,2481.8,16.11993802]
[1746947866392,4.02893669,2482.1,2481.8,16.11993802]
[1746947866698,4.02712237,2483.2,2481.9,0.05729254]
[1746947866903,5.35967857,2483.1,2481.9,0.017]
[1746947867104,4.02865424,2482.3,2481.9,0.05727989]
[1746947867303,4.02832595,2482.5,2482.0,4.46]
[1746947867469,4.02846059,2482.4,2482.0,4.46]
[1746947867791,5.57241738,2483.1,2482.0,6.52372179]
[1746947867978,4.02813883,2482.6,2482.0,4.46]
[1746947868183,4.02917119,2481.9,2481.8,16.11993802]
[1746947870179,4.57917119,2481.9,2481.8,16.11993802]
[1746947870487,4.02917119,2481.9,2481.8,16.11993802]
[1746947870695,0.3004554,2482.0,2481.8,16.11993802]
[1746947870892,4.02917119,2481.9,2481.8,16.11993802]
[1746947871507,0.30764289,2482.0,2481.8,16.11993802]
[1746947871702,4.02917119,2481.9,2481.8,16.11993802]
[1746947873073,18.30439737,2481.9,2481.8,16.11993802]
[1746947873279,18.85439737,2481.9,2481.8,16.11993802]
[1746947873583,4.02917119,2481.9,2481.8,16.11993802]
[1746947873790,8.48517119,2481.9,2481.8,16.11993802]
[1746947874180,17.03517119,2481.9,2481.8,16.11993802]
[1746947874381,8.48517119,2481.9,2481.8,16.11993802]
[1746947874612,9.03517119,2481.9,2481.8,16.11993802]
[1746947874974,8.48517119,2481.9,2481.8,16.11993802]
[1746947875594,4.02917119,2481.9,2481.8,16.11993802]
[1746947876390,0.30299216,2482.0,2481.8,16.11993802]
[1746947876625,4.02787288,2482.7,2481.9,4.479]
[1746947876784,4.02797476,2482.7,2481.9,4.51929251]
[1746947876990,8.48083319,2482.8,2481.9,4.51929251]
[1746947877222,4.02752661,2483.0,2482.0,0.017]
[1746947877223,4.0275144,2483.0,2482.0,0.017]
[1746947877421,4.0277767,2482.8,2482.0,2.24212243]
[1746947877630,5.35967857,2483.2,2482.1,14.501]
[1746947877934,5.35967857,2483.2,2482.2,0.04028165]
[1746947878234,0.29688066,2483.5,2482.3,0.017]
[1746947878523,4.02657555,2483.5,2482.3,0.017]
[1746947878722,4.452,2483.9,2482.4,0.017]
[1746947879092,4.02629464,2483.7,2482.4,0.017]
[1746947879423,4.02581682,2484.0,2482.5,0.04027158]
[1746947879595,4.451,2484.3,2482.6,0.017]
[1746947879796,4.451,2484.3,2482.8,0.017]
[1746947880131,4.45,2484.3,2482.9,0.017]
[1746947880313,0.84751783,2484.2,2482.9,0.017]
[1746947880625,4.02605454,2483.9,2482.9,0.017]
[1746947880793,4.02560283,2484.1,2482.9,0.017]
[1746947880990,4.0258992,2484.0,2482.9,0.017]
[1746947881190,4.02738622,2483.0,2482.9,0.017]
[1746947881428,0.40273862,2483.0,2482.0,0.017]
[1746947881730,5.35967857,2482.9,2482.0,0.017]
[1746947881936,4.448,2482.8,2482.0,0.017]
[1746947882119,0.30238181,2483.0,2482.1,4.462]
[1746947882427,0.30238181,2483.0,2482.2,0.0402839]
[1746947882428,4.02738622,2483.0,2482.2,0.0402839]
[1746947882592,0.30171684,2483.2,2482.2,14.53927935]
[1746947882792,4.02689968,2483.3,2482.3,0.017]
[1746947882999,4.02737599,2483.1,2482.3,0.017]
[1746947883201,4.02735223,2483.1,2482.3,0.05728351]
[1746947883415,4.447,2483.4,2482.3,0.017]
[1746947883918,4.02777726,2482.8,2482.3,0.017]
[1746947884308,4.02726228,2483.1,2482.3,0.05727947]
[1746947884509,4.447,2483.3,2482.3,1.95910742]
[1746947884696,5.66614862,2483.5,2482.3,1.95910742]
[1746947884697,4.33307868,2483.5,2482.4,0.017]
[1746947884897,0.30647005,2483.5,2482.5,0.0402707]
[1746947885121,0.7828,2484.6,2482.5,0.0402707]
[1746947885327,9.38367367,2485.1,2482.7,0.55]
[1746947885494,4.96251223,2485.0,2482.9,8.0]
[1746947885694,5.26793208,2485.0,2483.0,4.50224915]
[1746947885952,9.3831598,2485.5,2483.1,8.55]
[1746947886235,0.29870864,2485.7,2483.5,8.55]
[1746947886399,0.7828,2486.2,2483.9,8.0]
[1746947886605,17.14137438,2486.4,2484.0,4.50223393]
[1746947886945,4.02283166,2485.9,2484.0,4.50223393]
[1746947887137,3.31473764,2486.4,2484.3,8.55]
[1746947887430,3.31473764,2486.4,2485.2,0.55]
[1746947887630,3.31473764,2486.4,2485.1,8.0]
[1746947887631,3.31473764,2486.4,2485.4,8.0]
[1746947887850,0.30018844,2487.3,2485.5,4.443]
[1746947888052,0.7828,2487.7,2485.5,4.443]
[1746947888218,0.40975376,2487.6,2485.7,0.55]
[1746947888403,0.40975376,2487.6,2485.6,8.4443]
[1746947888598,4.0201005,2487.5,2485.6,8.4443]
[1746947888803,0.40975376,2487.6,2485.7,0.55]
[1746947889235,0.40975376,2487.6,2485.6,8.4443]
[1746947889444,0.40975376,2487.6,2485.7,1.28873]
[1746947889841,5.76943233,2487.6,2485.7,1.28873]
[1746947890005,0.55,2487.4,2485.8,4.459]
[1746947890210,8.55,2487.2,2485.8,4.459]
[1746947890419,9.19255376,2487.6,2485.8,4.459]
[1746947890603,4.02074705,2487.1,2485.9,4.459]
[1746947890808,9.37994069,2487.4,2485.9,4.459]
[1746947890809,5.35967857,2487.4,2486.0,0.04021824]
[1746947891119,4.02107389,2486.9,2485.9,4.459]
[1746947891309,4.02053415,2487.3,2485.9,4.459]
[1746947891506,4.02104953,2487.0,2485.9,4.459]
[1746947891752,0.40210495,2486.9,2485.9,4.459]
[1746947892053,0.91925538,2487.5,2485.9,4.459]
[1746947892204,4.02104916,2487.0,2485.9,4.459]
[1746947892408,4.0210709,2486.9,2485.9,4.459]
[1746947892652,5.35967857,2487.3,2485.4,7.26917537]
[1746947892822,4.02103008,2487.0,2486.0,4.458]
[1746947893152,4.42317563,2486.9,2486.0,4.458]
[1746947893442,0.40210301,2486.9,2486.0,4.458]
[1746947893642,4.02139444,2486.7,2486.0,4.458]
[1746947893845,8.91925538,2487.5,2486.0,4.458]
[1746947894097,8.0,2487.3,2486.0,4.458]
[1746947894345,4.02039801,2487.4,2486.1,0.04021335]
[1746947894547,4.02053921,2487.3,2486.0,4.458]
[1746947894753,0.40205392,2487.2,2486.1,0.4458]
[1746947894951,4.42267114,2487.2,2486.1,0.4458]
[1746947895116,0.40205392,2487.2,2486.1,0.4458]
[1746947895320,8.0,2487.7,2486.1,0.4458]
[1746947895645,4.01924828,2488.1,2486.2,0.0402077]
[1746947895803,4.433,2488.4,2486.2,0.0402077]
[1746947896004,4.73151734,2488.4,2486.1,8.4458]
[1746947896204,4.01974878,2487.8,2486.1,8.4458]
[1746947896410,4.02037034,2487.4,2486.2,1.29038]
[1746947896711,4.0205657,2487.3,2486.3,4.457]
[1746947897220,4.02023299,2487.5,2484.4,2.03200613]
[1746947897221,5.35967857,2487.4,2484.4,2.03200613]
[1746947897425,4.02156528,2486.6,2485.4,4.431]
[1746947897733,4.02282747,2485.9,2485.4,4.431]
[1746947897903,0.40228275,2485.9,2485.4,4.431]
[1746947898110,4.02317347,2485.6,2484.4,4.43]
[1746947898310,4.02405828,2485.1,2484.4,4.43]
[1746947898509,4.02494835,2484.6,2484.4,4.43]
[1746947898911,4.02461752,2484.8,2484.4,4.43]
[1746947899220,4.02461752,2484.8,2483.9,14.479]
[1746947899221,4.02495471,2484.5,2483.9,14.479]
[1746947899409,4.02457295,2484.8,2484.0,4.43]
[1746947899746,4.02324955,2485.6,2484.0,4.43]
[1746947899747,12.02326856,2485.6,2484.0,4.43]
[1746947899907,4.427,2485.7,2484.1,4.427]
[1746947900109,4.02317727,2485.6,2484.2,8.0]
[1746947900310,0.55,2485.6,2484.3,4.43]
[1746947900509,4.02382102,2485.2,2484.3,4.43]
[1746947900725,1.06429788,2485.5,2484.3,4.43]
[1746947901047,4.0245751,2484.8,2484.3,4.43]
[1746947901248,4.02383523,2485.2,2484.4,0.04024688]
[1746947901543,4.42644007,2485.1,2484.3,4.43]
[1746947901752,0.40238352,2485.1,2484.3,4.43]
[1746947901910,0.55,2484.8,2482.0,5.35967857]
[1746947902110,4.02671033,2483.5,2482.9,14.48]
[1746947902341,5.35967857,2484.1,2483.0,4.43]
[1746947902539,4.0255641,2484.2,2483.1,4.47026553]
[1746947902722,4.02655863,2483.6,2483.1,4.43]
[1746947902936,8.0,2484.4,2483.2,4.47026756]
[1746947903137,4.02434458,2484.9,2483.3,4.91729143]
[1746947903341,0.7601,2485.0,2483.3,4.87702676]
[1746947903649,4.82738352,2485.1,2483.4,0.04025337]
[1746947903822,4.82738352,2485.1,2483.3,4.87702676]
[1746947904235,8.0,2485.0,2483.3,4.87702676]
[1746947904431,4.02543054,2484.3,2483.3,4.87702676]
[1746947904750,4.02518122,2484.4,2483.3,4.87702676]
[1746947904955,4.02530624,2484.3,2483.4,4.431]
[1746947905122,9.38414734,2484.8,2482.6,8.0]
[1746947905123,8.55,2484.7,2482.6,8.0]
[1746947905341,8.55,2484.7,2482.5,14.48]
[1746947905342,8.55,2484.7,2482.7,8.855]
[1746947905527,4.02575895,2484.1,2482.8,0.92576296]
[1746947905853,4.02506979,2484.5,2482.8,0.92576296]
[1746947906026,0.47861548,2484.6,2482.8,0.92576296]
[1746947906347,5.1911,2485.4,2482.8,0.8855]
[1746947906348,4.02418514,2485.0,2482.8,0.8855]
[1746947906554,4.423,2485.0,2482.9,0.04025051]
[1746947906735,4.423,2485.0,2483.0,0.55]
[1746947906938,4.423,2485.0,2482.8,6.24517857]
[1746947907115,4.423,2485.0,2482.9,0.55]
[1746947907317,4.423,2485.0,2483.0,0.71976788]
[1746947907657,4.02430681,2484.9,2483.0,0.67951786]
[1746947907841,4.02472594,2484.7,2483.0,0.67951786]
[1746947908037,8.0,2484.9,2483.0,0.67951786]
[1746947908358,8.0,2484.3,2482.8,0.8855]
[1746947908523,8.44744078,2484.2,2482.7,4.431]
[1746947908852,4.02586021,2484.0,2482.7,4.431]
[1746947909032,4.422,2484.2,2482.7,4.431]
[1746947909236,8.0,2484.3,2482.7,4.431]
[1746947909439,8.0,2484.5,2482.1,8.59081226]
[1746947909654,4.0253018,2484.3,2482.6,10.301]
[1746947909846,8.0,2484.5,2482.6,10.301]
[1746947910051,4.02564917,2484.1,2482.6,10.301]
[1746947910364,4.02548638,2484.2,2482.6,10.301]
[1746947910563,4.02453404,2484.8,2482.8,0.55]
[1746947910722,5.35967857,2485.3,2482.8,5.90967857]
[1746947911062,4.02391379,2485.2,2483.3,8.0]
[1746947911251,8.0,2485.6,2483.4,8.852]
[1746947911446,4.02464935,2484.7,2483.5,1.6852]
[1746947911654,4.02480235,2484.6,2483.6,4.432]
[1746947911857,8.0,2485.2,2483.6,4.432]
[1746947912056,0.55,2485.1,2483.6,4.432]
[1746947912241,4.02472951,2484.7,2483.7,0.04025036]
[1746947912565,8.0,2485.2,2483.8,14.487]
[1746947912978,4.02463676,2484.7,2483.9,0.04025187]
[1746947913148,4.02480842,2484.6,2484.0,4.432]
[1746947913777,8.0,2485.2,2484.0,4.432]
[1746947913932,4.419,2485.3,2484.1,0.04024685]
[1746947914133,8.84425066,2485.2,2484.0,4.432]
[1746947914361,4.0247923,2484.7,2484.0,4.432]
[1746947914547,4.0247923,2484.7,2483.8,14.487]
[1746947914752,4.02453911,2484.8,2484.1,4.432]
[1746947914959,8.84425066,2485.2,2484.2,0.04025023]
[1746947915152,0.91710317,2485.1,2484.1,4.432]
[1746947915369,8.44277831,2485.3,2484.1,4.432]
[1746947915577,5.35967857,2486.0,2484.2,0.04024245]
[1746947915744,4.02292458,2485.8,2484.2,4.45624245]
[1746947915943,0.8276,2486.3,2484.3,8.0]
[1746947916170,0.8276,2486.7,2484.4,0.04023174]
[1746947916371,0.61872786,2486.6,2484.8,8.0]
[1746947916678,5.35967857,2487.2,2485.0,0.55]
[1746947916890,4.02069368,2487.2,2485.1,18.94221513]
[1746947917046,4.02069368,2487.2,2485.1,18.902]
[1746947917379,4.0201005,2487.5,2485.2,0.55]
[1746947917579,4.415,2487.7,2485.6,0.55]
[1746947917779,0.4415,2487.6,2485.7,5.02296786]
[1746947918484,4.01987378,2487.7,2485.8,12.45320481]
[1746947918778,4.01945415,2487.9,2485.8,12.413]
[1746947919076,4.02079066,2487.1,2485.1,14.487]
[1746947919292,4.021009,2487.0,2485.7,4.412]
[1746947919497,4.02112877,2486.9,2485.7,4.412]
[1746947919670,0.40211288,2486.8,2485.7,4.412]
[1746947919858,4.02027729,2487.4,2485.8,0.04021516]
[1746947920063,5.35967857,2487.6,2485.7,4.412]
[1746947920276,5.35967857,2487.6,2485.5,8.0]
[1746947920277,4.0201005,2487.5,2485.8,8.88121261]
[1746947920470,0.29725719,2488.0,2485.9,8.0]
[1746947920684,4.01988561,2487.7,2486.0,1.6841]
[1746947921084,4.01959158,2487.9,2486.0,1.6841]
[1746947921284,0.56569358,2488.0,2486.0,1.6841]
[1746947921493,4.01984097,2487.7,2486.0,1.6841]
[1746947921695,0.4019841,2487.6,2486.1,0.96841]
[1746947921893,0.4019841,2487.6,2486.2,0.04020341]
[1746947922101,4.01938192,2488.0,2486.2,0.04020341]
[1746947922299,4.01913106,2488.1,2486.1,0.96841]
[1746947922718,4.01913106,2488.1,2486.2,0.0402002]
[1746947923203,4.407,2488.4,2486.2,0.0402002]
[1746947923204,4.01897383,2488.2,2486.2,0.0402002]
[1746947923415,4.01938988,2488.0,2486.2,0.55]
[1746947923581,0.40193899,2487.9,2486.3,1.48780886]
[1746947923766,0.40193899,2487.9,2486.5,8.0]
[1746947923968,0.40193899,2487.9,2486.6,8.835]
[1746947924232,4.0187089,2488.4,2486.6,8.835]
[1746947924433,4.01923153,2488.1,2486.6,8.835]
[1746947924634,4.01913507,2488.1,2486.6,4.429]
[1746947924800,4.01939461,2488.0,2486.7,4.44419786]
[1746947925004,4.01919728,2488.1,2486.7,4.404]
[1746947925235,0.40191973,2488.0,2486.7,4.404]
[1746947925382,0.40191973,2488.0,2486.8,0.04019529]
[1746947925585,4.01891642,2488.3,2486.8,0.04019529]
[1746947925897,4.56832355,2488.6,2486.7,4.404]
[1746947926097,4.0190606,2488.2,2486.7,4.404]
[1746947926310,4.01875481,2488.4,2486.7,4.404]
[1746947926511,0.40187548,2488.3,2486.8,8.8833]
[1746947926837,0.29626518,2489.1,2487.1,8.0]
[1746947927132,4.01818634,2488.7,2487.2,8.803]
[1746947927315,4.01818634,2488.7,2487.3,8.0]
[1746947927486,4.0183302,2488.6,2487.3,8.0]
[1746947927681,4.0183302,2488.6,2486.8,0.8833]
[1746947927682,5.35967857,2488.2,2486.1,15.43941]
[1746947927954,4.01991688,2487.7,2486.1,15.43941]
[1746947928242,4.01967523,2487.8,2486.2,4.4]
[1746947928531,4.02003812,2487.6,2486.2,4.4]
[1746947928730,4.02004361,2487.6,2486.1,15.43941]
[1746947928890,8.41820586,2488.1,2486.1,15.43941]
[1746947928891,0.40200436,2487.5,2486.2,8.798]
[1746947929308,4.01989125,2487.7,2486.2,8.798]
[1746947929527,4.0200204,2487.6,2486.3,8.798]
[1746947929686,4.01951167,2487.9,2486.3,8.798]
[1746947929886,4.01962466,2487.8,2486.4,0.04020331]
[1746947930122,8.0,2488.1,2486.3,8.798]
[1746947930333,1.2397,2488.0,2486.3,4.4]
[1746947930633,1.2397,2488.0,2486.4,0.04020251]
[1746947930935,5.2591044,2488.0,2486.3,4.4]
[1746947931142,5.2591044,2488.0,2486.4,4.4]
[1746947931143,0.55,2487.9,2486.4,4.4]
[1746947931433,4.0203718,2487.4,2486.4,4.4]
[1746947931598,4.01989631,2487.7,2486.5,0.04020753]
[1746947931804,4.01989631,2487.7,2486.4,4.4]